[Event "Live Chess"]
[Site "Chess.com"]
[Date "2024.06.02"]
[Round "-"]
[White "Ksenia_2013"]
[Black "Mikhail_Golubev"]
[Result "0-1"]
[WhiteElo "973"]
[BlackElo "2484"]
[TimeControl "300"]
[EndTime "5:37:14 PDT"]
[Termination "Mikhail_Golubev won by checkmate"]

1. e4 {[%clk 0:04:55.7]} 1... c5 {[%clk 0:04:57.5]} 2. Bc4 {[%clk 0:04:53.8]}
2... e6 {[%clk 0:04:54.4]} 3. Nc3 {[%clk 0:04:49.5]} 3... Nc6 {[%clk 0:04:51.7]}
4. Nf3 {[%clk 0:04:47.6]} 4... Nf6 {[%clk 0:04:48.8]} 5. O-O {[%clk 0:04:45.3]}
5... d6 {[%clk 0:04:45.2]} 6. d3 {[%clk 0:04:38]} 6... Be7 {[%clk 0:04:34.1]} 7.
Bg5 {[%clk 0:04:30.5]} 7... h6 {[%clk 0:04:29.5]} 8. Bxf6 {[%clk 0:04:23.5]}
8... Bxf6 {[%clk 0:04:27.2]} 9. e5 {[%clk 0:04:11.4]} 9... Nxe5 {[%clk
0:04:24.6]} 10. Nxe5 {[%clk 0:04:09.1]} 10... Bxe5 {[%clk 0:04:22.6]} 11. Bb5+
{[%clk 0:04:07.4]} 11... Bd7 {[%clk 0:04:20.2]} 12. Bxd7+ {[%clk 0:04:05.8]}
12... Qxd7 {[%clk 0:04:19.3]} 13. Qf3 {[%clk 0:04:00.5]} 13... O-O {[%clk
0:04:12.1]} 14. Rae1 {[%clk 0:03:49.8]} 14... b5 {[%clk 0:03:57.1]} 15. a3
{[%clk 0:03:18.5]} 15... a5 {[%clk 0:03:49.3]} 16. b4 {[%clk 0:03:07.5]} 16...
Bxc3 {[%clk 0:03:46.1]} 17. Rd1 {[%clk 0:03:02.8]} 17... axb4 {[%clk 0:03:42.6]}
18. axb4 {[%clk 0:02:59.9]} 18... cxb4 {[%clk 0:03:40.5]} 19. Qe2 {[%clk
0:02:40.4]} 19... Ra2 {[%clk 0:03:33.5]} 20. Rb1 {[%clk 0:02:35.2]} 20... Qc6
{[%clk 0:03:24.8]} 21. Rfd1 {[%clk 0:02:24.2]} 21... Bd4 {[%clk 0:03:15.2]} 22.
Rdc1 {[%clk 0:02:18.3]} 22... Qc5 {[%clk 0:02:59.5]} 23. c3 {[%clk 0:02:15.7]}
23... Rxe2 {[%clk 0:02:56.2]} 24. cxd4 {[%clk 0:02:13]} 24... Qxd4 {[%clk
0:02:55.1]} 25. Re1 {[%clk 0:02:07.4]} 25... Qxf2+ {[%clk 0:02:52.7]} 26. Kh1
{[%clk 0:02:04.5]} 26... Qxg2# {[%clk 0:02:52.6]} 0-1

[Event "Live Chess"]
[Site "Chess.com"]
[Date "2024.06.02"]
[Round "-"]
[White "vincents82"]
[Black "lateforthesky"]
[Result "0-1"]
[WhiteElo "1991"]
[BlackElo "2069"]
[TimeControl "300"]
[EndTime "5:37:51 PDT"]
[Termination "lateforthesky won by resignation"]

1. e4 {[%clk 0:04:57.6]} 1... c5 {[%clk 0:04:58.2]} 2. Nf3 {[%clk 0:04:56.3]}
2... Nf6 {[%clk 0:04:57.3]} 3. Nc3 {[%clk 0:04:52.7]} 3... d5 {[%clk 0:04:55.6]}
4. e5 {[%clk 0:04:49.9]} 4... Nfd7 {[%clk 0:04:54.5]} 5. d4 {[%clk 0:04:47.7]}
5... e6 {[%clk 0:04:53]} 6. Be2 {[%clk 0:04:36.3]} 6... Nc6 {[%clk 0:04:51.7]}
7. dxc5 {[%clk 0:04:34.3]} 7... Bxc5 {[%clk 0:04:37.2]} 8. Bf4 {[%clk
0:04:30.3]} 8... Qb6 {[%clk 0:04:29.2]} 9. Na4 {[%clk 0:04:21.7]} 9... Qa5+
{[%clk 0:04:23]} 10. c3 {[%clk 0:04:19.7]} 10... Be7 {[%clk 0:04:18.7]} 11. b4
{[%clk 0:04:18.4]} 11... Qc7 {[%clk 0:04:16.3]} 12. O-O {[%clk 0:04:16.4]} 12...
Ncxe5 {[%clk 0:04:10.3]} 13. Nxe5 {[%clk 0:04:12.9]} 13... Nxe5 {[%clk
0:04:08.8]} 14. Nc5 {[%clk 0:04:09.5]} 14... Nf3+ {[%clk 0:04:04.1]} 15. Bxf3
{[%clk 0:04:07.3]} 15... Qxf4 {[%clk 0:04:03.1]} 16. Qa4+ {[%clk 0:04:03.7]}
16... Kf8 {[%clk 0:03:57.3]} 17. Nd7+ {[%clk 0:03:53]} 17... Bxd7 {[%clk
0:03:33.4]} 18. Qxd7 {[%clk 0:03:45.9]} 18... Qb8 {[%clk 0:03:26.6]} 19. Rfe1
{[%clk 0:03:39.4]} 19... Qc8 {[%clk 0:03:24.6]} 20. Qa4 {[%clk 0:03:33.1]} 20...
a6 {[%clk 0:03:20.1]} 21. Rad1 {[%clk 0:03:13.3]} 21... b5 {[%clk 0:03:16]} 22.
Qb3 {[%clk 0:03:10.7]} 22... g6 {[%clk 0:03:13.1]} 23. a4 {[%clk 0:02:51.1]}
23... Bf6 {[%clk 0:03:08.5]} 24. axb5 {[%clk 0:02:49]} 24... axb5 {[%clk
0:03:06.6]} 25. Ra1 {[%clk 0:02:43.6]} 25... Kg7 {[%clk 0:03:03.4]} 26. Rxa8
{[%clk 0:02:40.3]} 26... Qxa8 {[%clk 0:03:02.2]} 27. Be2 {[%clk 0:02:39.4]}
27... Qb7 {[%clk 0:02:55.5]} 28. Qc2 {[%clk 0:02:33.7]} 28... Rc8 {[%clk
0:02:52.7]} 29. Qd3 {[%clk 0:02:32.8]} 29... Rxc3 {[%clk 0:02:48.2]} 30. Qxb5
{[%clk 0:02:31.6]} 30... Qxb5 {[%clk 0:02:47]} 31. Bxb5 {[%clk 0:02:30]} 31...
Rb3 {[%clk 0:02:46]} 32. Be2 {[%clk 0:02:24.1]} 32... Rxb4 {[%clk 0:02:44.2]}
33. Kf1 {[%clk 0:02:22.5]} 33... Bd4 {[%clk 0:02:33.8]} 34. Rd1 {[%clk
0:02:19.1]} 34... f5 {[%clk 0:02:27.3]} 35. h4 {[%clk 0:02:14.3]} 35... Kf6
{[%clk 0:02:23.8]} 36. f3 {[%clk 0:02:11.1]} 36... e5 {[%clk 0:02:11.2]} 37. Rc1
{[%clk 0:02:04.4]} 37... Rb6 {[%clk 0:02:09.1]} 38. Bd3 {[%clk 0:02:01.9]} 38...
h5 {[%clk 0:02:06.7]} 39. Rb1 {[%clk 0:01:59.3]} 39... e4 {[%clk 0:01:56.5]} 40.
Rxb6+ {[%clk 0:01:57.1]} 40... Bxb6 {[%clk 0:01:55.4]} 41. fxe4 {[%clk
0:01:56.5]} 41... fxe4 {[%clk 0:01:54.1]} 42. Bb5 {[%clk 0:01:55.6]} 42... Ke5
{[%clk 0:01:52.7]} 43. Ke2 {[%clk 0:01:55]} 43... Kf4 {[%clk 0:01:49.4]} 44. Be8
{[%clk 0:01:52.9]} 44... Kg4 {[%clk 0:01:13.5]} 45. Bxg6 {[%clk 0:01:50.7]}
45... Kxh4 {[%clk 0:01:12.4]} 46. Bf7 {[%clk 0:01:46.3]} 46... d4 {[%clk
0:01:10.2]} 47. Bd5 {[%clk 0:01:44.3]} 47... d3+ {[%clk 0:00:39]} 48. Kd2 {[%clk
0:01:37.1]} 48... Ba5+ {[%clk 0:00:36.2]} 49. Ke3 {[%clk 0:01:32.7]} 49... d2
{[%clk 0:00:32.4]} 50. Bb3 {[%clk 0:01:26.1]} 50... Kg3 {[%clk 0:00:31.3]} 51.
Kxe4 {[%clk 0:01:13.2]} 51... Kxg2 {[%clk 0:00:30.4]} 52. Ke3 {[%clk 0:01:07.1]}
52... h4 {[%clk 0:00:29.2]} 53. Ke2 {[%clk 0:01:05.1]} 53... h3 {[%clk
0:00:25.9]} 54. Bd5+ {[%clk 0:01:03]} 54... Kg1 {[%clk 0:00:24.8]} 55. Kd1
{[%clk 0:00:55.2]} 55... h2 {[%clk 0:00:23.9]} 56. Be4 {[%clk 0:00:52.8]} 56...
h1=Q {[%clk 0:00:23.1]} 57. Bxh1 {[%clk 0:00:51.2]} 57... Kxh1 {[%clk
0:00:22.4]} 58. Ke2 {[%clk 0:00:49.6]} 58... Kg2 {[%clk 0:00:21.5]} 59. Kd1
{[%clk 0:00:48.5]} 59... Kf2 {[%clk 0:00:20.8]} 0-1

[Event "Live Chess"]
[Site "Chess.com"]
[Date "2024.06.02"]
[Round "-"]
[White "imchessive"]
[Black "ACM42"]
[Result "0-1"]
[WhiteElo "1594"]
[BlackElo "2225"]
[TimeControl "300"]
[EndTime "5:38:00 PDT"]
[Termination "ACM42 won by resignation"]

1. d4 {[%clk 0:04:58.7]} 1... Nf6 {[%clk 0:04:52.6]} 2. c4 {[%clk 0:04:57.5]}
2... g6 {[%clk 0:04:51.8]} 3. Nf3 {[%clk 0:04:56.7]} 3... Bg7 {[%clk 0:04:51]}
4. g3 {[%clk 0:04:56.1]} 4... O-O {[%clk 0:04:50.3]} 5. Bg2 {[%clk 0:04:55.4]}
5... d6 {[%clk 0:04:49]} 6. Nc3 {[%clk 0:04:54.4]} 6... c5 {[%clk 0:04:48.3]} 7.
O-O {[%clk 0:04:49.3]} 7... Nc6 {[%clk 0:04:47.4]} 8. dxc5 {[%clk 0:04:47.5]}
8... dxc5 {[%clk 0:04:46.2]} 9. Bf4 {[%clk 0:04:44]} 9... Be6 {[%clk 0:04:43.6]}
10. Qb3 {[%clk 0:04:26.8]} 10... Qb6 {[%clk 0:04:41.9]} 11. Qxb6 {[%clk
0:04:25.1]} 11... axb6 {[%clk 0:04:40.1]} 12. b3 {[%clk 0:04:16.9]} 12... Nh5
{[%clk 0:04:36.9]} 13. Bd2 {[%clk 0:04:13.7]} 13... Rfd8 {[%clk 0:04:34.3]} 14.
Rac1 {[%clk 0:04:07.3]} 14... Nb4 {[%clk 0:04:16.8]} 15. Na4 {[%clk 0:03:57.5]}
15... Nxa2 {[%clk 0:04:11.6]} 16. Rc2 {[%clk 0:03:54.2]} 16... Nb4 {[%clk
0:04:05.6]} 17. Bxb4 {[%clk 0:03:52.9]} 17... cxb4 {[%clk 0:04:04.4]} 18. Nxb6
{[%clk 0:03:50]} 18... Ra3 {[%clk 0:04:00.1]} 19. Nd2 {[%clk 0:03:36.9]} 19...
Bc3 {[%clk 0:03:51.4]} 20. Ne4 {[%clk 0:03:19]} 20... Rxb3 {[%clk 0:03:44.1]}
21. Nxc3 {[%clk 0:02:56.1]} 21... bxc3 {[%clk 0:03:20.7]} 22. Na4 {[%clk
0:02:43.7]} 22... Bxc4 {[%clk 0:03:18.7]} 23. Nc5 {[%clk 0:02:36]} 23... Rb2
{[%clk 0:03:09.9]} 24. Rfc1 {[%clk 0:02:18.6]} 24... b6 {[%clk 0:02:20.7]} 25.
Na4 {[%clk 0:02:15]} 25... Rxc2 {[%clk 0:02:19]} 26. Rxc2 {[%clk 0:02:10.1]}
26... Bb3 {[%clk 0:02:18.2]} 27. Rxc3 {[%clk 0:01:30.9]} 27... Bxa4 {[%clk
0:02:17.1]} 28. e4 {[%clk 0:01:16.9]} 28... Rd1+ {[%clk 0:02:13.6]} 29. Bf1
{[%clk 0:01:14.9]} 29... Bb5 {[%clk 0:02:13]} 0-1

[Event "Live Chess"]
[Site "Chess.com"]
[Date "2024.06.02"]
[Round "-"]
[White "megabusyman"]
[Black "slava_ukr"]
[Result "0-1"]
[WhiteElo "1867"]
[BlackElo "2355"]
[TimeControl "300"]
[EndTime "5:38:19 PDT"]
[Termination "slava_ukr won by checkmate"]

1. e4 {[%clk 0:04:45.7]} 1... c5 {[%clk 0:04:59.1]} 2. Nc3 {[%clk 0:04:44.2]}
2... Nc6 {[%clk 0:04:58.5]} 3. f4 {[%clk 0:04:42.4]} 3... g6 {[%clk 0:04:56.9]}
4. Nf3 {[%clk 0:04:40]} 4... Bg7 {[%clk 0:04:56.3]} 5. Bb5 {[%clk 0:04:37.5]}
5... d6 {[%clk 0:04:52]} 6. Bxc6+ {[%clk 0:04:19.9]} 6... bxc6 {[%clk 0:04:51]}
7. O-O {[%clk 0:04:18.6]} 7... e6 {[%clk 0:04:50.3]} 8. d4 {[%clk 0:04:17.6]}
8... Ne7 {[%clk 0:04:49.7]} 9. dxc5 {[%clk 0:04:13.6]} 9... d5 {[%clk 0:04:49]}
10. e5 {[%clk 0:04:09]} 10... O-O {[%clk 0:04:44]} 11. Nd4 {[%clk 0:04:03.8]}
11... Bd7 {[%clk 0:04:42.8]} 12. b4 {[%clk 0:04:00.3]} 12... f6 {[%clk
0:04:35.8]} 13. Re1 {[%clk 0:03:37.1]} 13... fxe5 {[%clk 0:04:33.9]} 14. fxe5
{[%clk 0:03:36.1]} 14... Nf5 {[%clk 0:04:31.2]} 15. Nxf5 {[%clk 0:03:19.9]}
15... Rxf5 {[%clk 0:04:28.8]} 16. Bb2 {[%clk 0:03:17.8]} 16... Bxe5 {[%clk
0:04:13]} 17. g4 {[%clk 0:03:09.7]} 17... Bxh2+ {[%clk 0:04:00.1]} 18. Kxh2
{[%clk 0:03:06.6]} 18... Qh4+ {[%clk 0:03:58.7]} 19. Kg2 {[%clk 0:03:05.7]}
19... Rf2+ {[%clk 0:03:57.7]} 20. Kg1 {[%clk 0:03:02.5]} 20... Qh2# {[%clk
0:03:56.7]} 0-1

[Event "Live Chess"]
[Site "Chess.com"]
[Date "2024.06.02"]
[Round "-"]
[White "bobby_jamesFischer86"]
[Black "Queensandpawns"]
[Result "0-1"]
[WhiteElo "1629"]
[BlackElo "2280"]
[TimeControl "300"]
[EndTime "5:38:27 PDT"]
[Termination "Queensandpawns won by resignation"]

1. d4 {[%clk 0:04:57.8]} 1... e5 {[%clk 0:04:59.9]} 2. dxe5 {[%clk 0:04:56]}
2... Nc6 {[%clk 0:04:59.3]} 3. Nf3 {[%clk 0:04:55.2]} 3... Qe7 {[%clk
0:04:58.3]} 4. e3 {[%clk 0:04:53.5]} 4... Nxe5 {[%clk 0:04:56.7]} 5. c3 {[%clk
0:04:52]} 5... c6 {[%clk 0:04:52.6]} 6. Be2 {[%clk 0:04:48.3]} 6... d5 {[%clk
0:04:46.4]} 7. O-O {[%clk 0:04:47.5]} 7... Nf6 {[%clk 0:04:44]} 8. b3 {[%clk
0:04:46.8]} 8... Bf5 {[%clk 0:04:38.2]} 9. Bb2 {[%clk 0:04:44.6]} 9... Qd6
{[%clk 0:04:33.8]} 10. c4 {[%clk 0:04:32.2]} 10... Nxf3+ {[%clk 0:04:30.3]} 11.
Bxf3 {[%clk 0:04:30.8]} 11... O-O-O {[%clk 0:04:29.1]} 12. cxd5 {[%clk
0:04:26.5]} 12... cxd5 {[%clk 0:04:29]} 13. Nc3 {[%clk 0:04:16.9]} 13... Ne4
{[%clk 0:04:09.1]} 14. Nxe4 {[%clk 0:04:12.2]} 14... dxe4 {[%clk 0:04:09]} 15.
Be2 {[%clk 0:03:55.5]} 15... Qxd1 {[%clk 0:03:58.2]} 16. Rfxd1 {[%clk
0:03:53.8]} 16... Bd6 {[%clk 0:03:58.1]} 17. Rac1+ {[%clk 0:03:51.3]} 17... Kd7
{[%clk 0:03:52.7]} 18. Bb5+ {[%clk 0:03:49]} 18... Ke7 {[%clk 0:03:50.3]} 19. g3
{[%clk 0:03:05.4]} 19... a6 {[%clk 0:03:46.8]} 20. Bf1 {[%clk 0:03:03.5]} 20...
f6 {[%clk 0:03:45.6]} 21. a3 {[%clk 0:02:52.5]} 21... Rc8 {[%clk 0:03:40]} 22.
b4 {[%clk 0:02:50.7]} 22... Bg4 {[%clk 0:03:36.8]} 23. Rxc8 {[%clk 0:02:40.2]}
23... Rxc8 {[%clk 0:03:31.7]} 24. Rc1 {[%clk 0:02:39.7]} 24... Rxc1 {[%clk
0:03:22.8]} 25. Bxc1 {[%clk 0:02:38.5]} 25... Be6 {[%clk 0:03:18.9]} 26. h3
{[%clk 0:02:33]} 26... Bb3 {[%clk 0:03:17]} 27. Bb2 {[%clk 0:02:26.5]} 27... Ke6
{[%clk 0:03:14]} 28. h4 {[%clk 0:02:22.9]} 28... Kd5 {[%clk 0:03:12.9]} 29. Be2
{[%clk 0:02:16.3]} 29... Bc4 {[%clk 0:03:11.7]} 30. Kf1 {[%clk 0:02:12.7]} 30...
Bxe2+ {[%clk 0:03:04.1]} 31. Kxe2 {[%clk 0:02:10.4]} 31... Kc4 {[%clk 0:03:04]}
32. Kd2 {[%clk 0:02:07.4]} 32... Kb3 {[%clk 0:03:02.6]} 33. Bc1 {[%clk
0:02:06.3]} 33... a5 {[%clk 0:02:59.8]} 34. bxa5 {[%clk 0:01:45]} 34... Bxa3
{[%clk 0:02:59.7]} 35. Bxa3 {[%clk 0:01:35.9]} 35... Kxa3 {[%clk 0:02:59.6]} 36.
Kc3 {[%clk 0:01:34.6]} 36... Ka4 {[%clk 0:02:57.1]} 37. a6 {[%clk 0:01:33.4]}
37... bxa6 {[%clk 0:02:55.2]} 38. Kd4 {[%clk 0:01:32.9]} 38... Kb4 {[%clk
0:02:54.4]} 39. Kxe4 {[%clk 0:01:30.6]} 39... a5 {[%clk 0:02:53.9]} 40. Kf5
{[%clk 0:01:27.9]} 40... a4 {[%clk 0:02:52.9]} 41. f4 {[%clk 0:01:27]} 41... a3
{[%clk 0:02:52.4]} 42. e4 {[%clk 0:01:26.6]} 42... a2 {[%clk 0:02:52.3]} 43. e5
{[%clk 0:01:26.1]} 43... a1=Q {[%clk 0:02:52.2]} 44. e6 {[%clk 0:01:24.4]} 44...
Qa5+ {[%clk 0:02:51.8]} 0-1

[Event "Live Chess"]
[Site "Chess.com"]
[Date "2024.06.02"]
[Round "-"]
[White "WilliamofOrange16th"]
[Black "davigator"]
[Result "1-0"]
[WhiteElo "2012"]
[BlackElo "2362"]
[TimeControl "300"]
[EndTime "5:38:36 PDT"]
[Termination "WilliamofOrange16th won by resignation"]

1. e4 {[%clk 0:04:59.2]} 1... c5 {[%clk 0:04:56.4]} 2. Nc3 {[%clk 0:04:56]} 2...
Nc6 {[%clk 0:04:55.2]} 3. g3 {[%clk 0:04:55.5]} 3... g6 {[%clk 0:04:54.2]} 4.
Bg2 {[%clk 0:04:55.4]} 4... Bg7 {[%clk 0:04:52.8]} 5. d3 {[%clk 0:04:54.9]} 5...
d6 {[%clk 0:04:50.9]} 6. Be3 {[%clk 0:04:54.2]} 6... Nf6 {[%clk 0:04:48]} 7. h3
{[%clk 0:04:50.5]} 7... O-O {[%clk 0:04:47.2]} 8. Qd2 {[%clk 0:04:49]} 8... Re8
{[%clk 0:04:44.8]} 9. Bh6 {[%clk 0:04:47.6]} 9... Bh8 {[%clk 0:04:42.9]} 10.
Nge2 {[%clk 0:04:45.9]} 10... Rb8 {[%clk 0:04:42]} 11. O-O {[%clk 0:04:43]}
11... b5 {[%clk 0:04:40.6]} 12. a3 {[%clk 0:04:40.6]} 12... a5 {[%clk 0:04:39]}
13. f4 {[%clk 0:04:33.8]} 13... Nd4 {[%clk 0:04:36.8]} 14. Nxd4 {[%clk
0:04:32.5]} 14... cxd4 {[%clk 0:04:35.8]} 15. Ne2 {[%clk 0:04:31.9]} 15... Nd7
{[%clk 0:04:34.6]} 16. g4 {[%clk 0:04:28.7]} 16... Qc7 {[%clk 0:04:30.2]} 17. f5
{[%clk 0:04:26.1]} 17... Ne5 {[%clk 0:04:28.8]} 18. fxg6 {[%clk 0:04:23.6]}
18... hxg6 {[%clk 0:04:27.1]} 19. Nf4 {[%clk 0:04:19.6]} 19... Be6 {[%clk
0:04:21.1]} 20. Nxe6 {[%clk 0:04:13.8]} 20... fxe6 {[%clk 0:04:19.7]} 21. Bf4
{[%clk 0:04:01.2]} 21... Qc5 {[%clk 0:04:12.6]} 22. b4 {[%clk 0:03:57]} 22...
axb4 {[%clk 0:04:10.4]} 23. axb4 {[%clk 0:03:56.3]} 23... Qc7 {[%clk 0:04:08.1]}
24. Bxe5 {[%clk 0:03:55.1]} 24... Bxe5 {[%clk 0:04:06.4]} 25. Qh6 {[%clk
0:03:53.9]} 25... Qd7 {[%clk 0:03:54.4]} 26. Qxg6+ {[%clk 0:03:51.4]} 26... Bg7
{[%clk 0:03:54]} 27. Rf7 {[%clk 0:03:48.3]} 1-0

[Event "Live Chess"]
[Site "Chess.com"]
[Date "2024.06.02"]
[Round "-"]
[White "ukraineZelensky"]
[Black "Pandreq"]
[Result "1-0"]
[WhiteElo "1427"]
[BlackElo "1236"]
[TimeControl "300"]
[EndTime "5:38:46 PDT"]
[Termination "ukraineZelensky won by checkmate"]

1. d4 {[%clk 0:04:54.2]} 1... d5 {[%clk 0:04:58.9]} 2. e3 {[%clk 0:04:48.6]}
2... c6 {[%clk 0:04:58.3]} 3. c4 {[%clk 0:04:46.5]} 3... Nf6 {[%clk 0:04:55.4]}
4. Nc3 {[%clk 0:04:43.8]} 4... Bf5 {[%clk 0:04:52.2]} 5. cxd5 {[%clk 0:04:38.7]}
5... cxd5 {[%clk 0:04:50.8]} 6. Nf3 {[%clk 0:04:30.7]} 6... e6 {[%clk
0:04:48.4]} 7. a3 {[%clk 0:04:27.8]} 7... Nbd7 {[%clk 0:04:46.2]} 8. Ne5 {[%clk
0:04:20.9]} 8... Nxe5 {[%clk 0:04:44.2]} 9. dxe5 {[%clk 0:04:18.5]} 9... Nd7
{[%clk 0:04:43.8]} 10. Bb5 {[%clk 0:04:09.4]} 10... a6 {[%clk 0:04:40.6]} 11.
Bxd7+ {[%clk 0:04:07.8]} 11... Qxd7 {[%clk 0:04:39.5]} 12. O-O {[%clk
0:03:53.9]} 12... Rc8 {[%clk 0:04:37.8]} 13. h3 {[%clk 0:03:46.6]} 13... Qc7
{[%clk 0:04:36.1]} 14. Qd4 {[%clk 0:03:39.2]} 14... Bc5 {[%clk 0:04:33.9]} 15.
Qf4 {[%clk 0:03:35.9]} 15... O-O {[%clk 0:04:25.5]} 16. Bd2 {[%clk 0:03:28.2]}
16... Bd3 {[%clk 0:04:22.2]} 17. Rfe1 {[%clk 0:03:24.1]} 17... Bc4 {[%clk
0:04:17.6]} 18. Na4 {[%clk 0:03:13.5]} 18... Ba7 {[%clk 0:04:11]} 19. Rac1
{[%clk 0:02:51.3]} 19... Qc6 {[%clk 0:03:55.2]} 20. Nc3 {[%clk 0:02:45.4]} 20...
Bb8 {[%clk 0:03:48.1]} 21. e4 {[%clk 0:02:25.9]} 21... dxe4 {[%clk 0:03:41.8]}
22. Nxe4 {[%clk 0:02:18.8]} 22... Qd7 {[%clk 0:03:23.4]} 23. Bc3 {[%clk
0:02:10]} 23... Bd5 {[%clk 0:03:19.7]} 24. Nd6 {[%clk 0:02:02.2]} 24... Bxd6
{[%clk 0:03:13.4]} 25. exd6 {[%clk 0:02:00]} 25... Rc6 {[%clk 0:03:12.4]} 26.
Be5 {[%clk 0:01:51.9]} 26... Rfc8 {[%clk 0:03:06.9]} 27. Rxc6 {[%clk 0:01:48.9]}
27... Rxc6 {[%clk 0:03:05.3]} 28. h4 {[%clk 0:01:24.7]} 28... Rc4 {[%clk
0:02:58.5]} 29. Qg3 {[%clk 0:01:15.6]} 29... g6 {[%clk 0:02:55.9]} 30. h5 {[%clk
0:01:12.7]} 30... Be4 {[%clk 0:02:45.9]} 31. hxg6 {[%clk 0:01:01.5]} 31... hxg6
{[%clk 0:02:41.3]} 32. Qh3 {[%clk 0:00:54.1]} 32... f5 {[%clk 0:02:29.9]} 33.
Qh8+ {[%clk 0:00:51.4]} 33... Kf7 {[%clk 0:02:28.6]} 34. Qg7+ {[%clk 0:00:48.6]}
34... Ke8 {[%clk 0:02:27.4]} 35. Qg8# {[%clk 0:00:44]} 1-0

[Event "Live Chess"]
[Site "Chess.com"]
[Date "2024.06.02"]
[Round "-"]
[White "dhairyapandyauk"]
[Black "Andriy_Yaremovych"]
[Result "0-1"]
[WhiteElo "1639"]
[BlackElo "1660"]
[TimeControl "300"]
[EndTime "5:39:07 PDT"]
[Termination "Andriy_Yaremovych won by checkmate"]

1. e4 {[%clk 0:04:54]} 1... b6 {[%clk 0:04:57.7]} 2. d4 {[%clk 0:04:35.6]} 2...
Bb7 {[%clk 0:04:57.6]} 3. Bd3 {[%clk 0:04:34]} 3... Nf6 {[%clk 0:04:56.6]} 4. f3
{[%clk 0:04:28.8]} 4... d6 {[%clk 0:04:54.5]} 5. c3 {[%clk 0:04:27.8]} 5... Nbd7
{[%clk 0:04:52.8]} 6. Ne2 {[%clk 0:04:26.8]} 6... e5 {[%clk 0:04:52]} 7. d5
{[%clk 0:04:23.3]} 7... g6 {[%clk 0:04:50.1]} 8. Bb5 {[%clk 0:04:19.6]} 8... a6
{[%clk 0:04:48.3]} 9. Bxd7+ {[%clk 0:04:18.6]} 9... Qxd7 {[%clk 0:04:47.8]} 10.
c4 {[%clk 0:04:18]} 10... Bg7 {[%clk 0:04:46.5]} 11. Nbc3 {[%clk 0:04:16.7]}
11... Nh5 {[%clk 0:04:43.7]} 12. Ng3 {[%clk 0:04:14.1]} 12... Nxg3 {[%clk
0:04:42.1]} 13. hxg3 {[%clk 0:04:13.4]} 13... h5 {[%clk 0:04:40.9]} 14. f4
{[%clk 0:04:02.1]} 14... O-O-O {[%clk 0:04:37.2]} 15. Be3 {[%clk 0:03:59.6]}
15... Kb8 {[%clk 0:04:34]} 16. Qe2 {[%clk 0:03:52.4]} 16... f6 {[%clk
0:04:27.8]} 17. O-O-O {[%clk 0:03:41.6]} 17... Qe7 {[%clk 0:04:22.1]} 18. g4
{[%clk 0:03:32]} 18... h4 {[%clk 0:04:17.6]} 19. g3 {[%clk 0:03:24.7]} 19... g5
{[%clk 0:04:15.7]} 20. f5 {[%clk 0:03:16.4]} 20... Qd7 {[%clk 0:04:10]} 21. gxh4
{[%clk 0:03:15.4]} 21... gxh4 {[%clk 0:04:07.3]} 22. Qf2 {[%clk 0:03:13.6]}
22... h3 {[%clk 0:04:06]} 23. Qg3 {[%clk 0:03:10.9]} 23... Bh6 {[%clk 0:04:05]}
24. Rxh3 {[%clk 0:03:06.3]} 24... Bxe3+ {[%clk 0:04:03]} 25. Qxe3 {[%clk
0:03:05.5]} 25... Rxh3 {[%clk 0:04:01.8]} 26. Qxh3 {[%clk 0:03:04.4]} 26... Qg7
{[%clk 0:04:01.4]} 27. Rh1 {[%clk 0:03:02.6]} 27... Rg8 {[%clk 0:04:00.1]} 28.
Rg1 {[%clk 0:02:57.1]} 28... Bc8 {[%clk 0:03:58.8]} 29. Nd1 {[%clk 0:02:53.1]}
29... Qg5+ {[%clk 0:03:57.4]} 30. Qe3 {[%clk 0:02:45.5]} 30... Qh4 {[%clk
0:03:55.7]} 31. Qg3 {[%clk 0:02:41.7]} 31... Qg5+ {[%clk 0:03:54.6]} 32. Ne3
{[%clk 0:02:39.8]} 32... Bd7 {[%clk 0:03:51.1]} 33. Kd2 {[%clk 0:02:37.1]} 33...
Kb7 {[%clk 0:03:49.5]} 34. Ke2 {[%clk 0:02:35.7]} 34... b5 {[%clk 0:03:48.4]}
35. b3 {[%clk 0:02:29.9]} 35... c5 {[%clk 0:03:46.1]} 36. Rh1 {[%clk 0:02:24.5]}
36... Kb6 {[%clk 0:03:38.3]} 37. Rh7 {[%clk 0:02:21.8]} 37... Rg7 {[%clk
0:03:36.8]} 38. Rxg7 {[%clk 0:02:19.7]} 38... Qxg7 {[%clk 0:03:36.7]} 39. Qh4
{[%clk 0:02:19]} 39... Ka5 {[%clk 0:03:31.6]} 40. Kf3 {[%clk 0:02:15.9]} 40...
Kb4 {[%clk 0:03:29]} 41. Qe1+ {[%clk 0:02:14.7]} 41... Ka3 {[%clk 0:03:27.3]}
42. Nc2+ {[%clk 0:02:12.5]} 42... Kxa2 {[%clk 0:03:26.4]} 43. Qa5+ {[%clk
0:01:16.4]} 43... Kxb3 {[%clk 0:03:21.7]} 44. Na1+ {[%clk 0:01:14.8]} 44... Kxc4
{[%clk 0:03:19.6]} 45. Qxa6 {[%clk 0:01:14]} 45... Qg5 {[%clk 0:03:13.9]} 46.
Qa2+ {[%clk 0:01:11.2]} 46... Kb4 {[%clk 0:03:11.1]} 47. Nc2+ {[%clk 0:01:09.9]}
47... Kc3 {[%clk 0:03:09.6]} 48. Ne3 {[%clk 0:01:07.8]} 48... Qf4+ {[%clk
0:03:07.9]} 49. Ke2 {[%clk 0:01:05.3]} 49... Qh2+ {[%clk 0:03:03.7]} 50. Kf3
{[%clk 0:00:59.9]} 50... Qxa2 {[%clk 0:03:02.3]} 51. g5 {[%clk 0:00:59.2]} 51...
fxg5 {[%clk 0:02:58.8]} 52. f6 {[%clk 0:00:57.8]} 52... Be8 {[%clk 0:02:57.5]}
53. Nd1+ {[%clk 0:00:54.2]} 53... Kd2 {[%clk 0:02:55.6]} 54. Ne3 {[%clk
0:00:52.1]} 54... Qb3 {[%clk 0:02:51.6]} 55. Kg4 {[%clk 0:00:50.8]} 55... Qxe3
{[%clk 0:02:46.9]} 56. f7 {[%clk 0:00:49.3]} 56... Qf4+ {[%clk 0:02:45.2]} 57.
Kh5 {[%clk 0:00:46.1]} 57... Bxf7+ {[%clk 0:02:43.9]} 58. Kh6 {[%clk 0:00:45.5]}
58... Qf6+ {[%clk 0:02:40.8]} 59. Kh7 {[%clk 0:00:44.7]} 59... Qg6+ {[%clk
0:02:39.7]} 60. Kh8 {[%clk 0:00:43.2]} 60... Qg8# {[%clk 0:02:39.6]} 0-1